bitfinex-derivatives/quotes_BNBF0:USTF0_20241231
["timestamp","ask_amount","ask_price","bid_price","bid_amount"]
[1735672891926,0.2612416,704.63,703.36,1.063392]
[1735672892925,0.2612416,704.63,703.33,1.063392]
[1735672893124,0.26124324,704.62,703.33,1.063392]
[1735672893427,1.48308094,704.64,703.33,1.063392]
[1735672893928,1.48308094,704.64,703.25,0.28439388]
[1735672902232,0.26127427,704.63,703.25,0.28439388]
[1735672902528,0.26127242,704.62,703.25,0.28439388]
[1735672902733,0.26127242,704.61,703.25,0.28439388]
[1735672902935,0.26127242,704.6,703.25,0.28439388]
[1735672903133,0.26127834,704.59,703.25,0.28439388]
[1735672903333,0.26127834,704.58,703.25,0.28439388]
[1735672903534,0.26127834,704.57,703.25,0.28439388]
[1735672903738,1.48308094,704.64,703.25,0.28439388]
[1735672903931,0.26127056,704.63,703.25,0.28439388]
[1735672904233,0.26127056,704.62,703.25,0.28439388]
[1735672908531,0.26127056,704.62,703.25,0.27688064]
[1735672908929,1.48324951,704.63,703.25,0.27688064]
[1735672909134,0.26124735,704.62,703.25,0.27688064]
[1735672912638,0.26124735,704.62,703.29,1.063392]
[1735672912836,0.26124735,704.62,703.3,0.28437366]
[1735672914336,1.48324951,704.63,703.3,0.28437366]
[1735672914535,0.26123778,704.62,703.3,0.28437366]
[1735672915035,0.26123778,704.62,703.31,1.063392]
[1735672915236,0.26123778,704.62,703.32,0.28436558]
[1735672915938,0.26123778,704.62,703.32,1.34775758]
[1735672917236,0.26122184,704.61,703.38,1.063392]
[1735672917433,0.26122184,704.6,703.39,0.28433728]
[1735672917637,0.26122184,704.59,703.39,0.28433728]
[1735672917837,0.26121473,704.62,703.39,0.28433728]
[1735672918139,0.26121473,704.61,703.44,1.063392]
[1735672918440,0.26121473,704.6,703.44,1.063392]
[1735672918736,0.26121473,704.59,703.44,1.063392]
[1735672918938,0.26121473,704.58,703.44,1.063392]
[1735672919238,1.48324951,704.63,703.46,1.063392]
[1735672919438,0.26121689,704.62,703.46,1.063392]
[1735672919737,0.26121606,704.61,703.46,1.063392]
[1735672919936,0.26121606,704.6,703.46,1.063392]
[1735672920238,0.26121606,704.59,703.46,1.063392]
[1735672920540,0.26121606,704.58,703.46,1.063392]
[1735672920737,0.26121606,704.57,703.46,1.063392]
[1735672921035,1.48324951,704.63,703.46,1.063392]
[1735672921237,0.26122564,704.62,703.45,1.063392]
[1735672922433,0.26122564,704.62,703.49,1.063392]
[1735672923236,0.26122564,704.62,703.48,1.063392]
[1735672924140,0.26122564,704.62,703.42,1.063392]
[1735672924931,0.26125139,704.61,703.42,1.063392]
[1735672925136,0.26125139,704.6,703.42,1.063392]
[1735672925335,0.26125139,704.59,703.4,1.063392]
[1735672925535,0.26125139,704.58,703.4,1.063392]
[1735672925734,0.26125139,704.57,703.4,1.063392]
[1735672925937,1.48324951,704.63,703.4,1.063392]
[1735672926240,0.26123291,704.62,703.45,1.063392]
[1735672926835,1.48324951,704.63,703.45,1.063392]
[1735672927040,0.26124261,704.62,703.45,1.063392]
[1735672927540,0.26124261,704.62,703.39,0.28433728]
[1735672928439,0.26124261,704.62,703.44,1.063392]
[1735672929541,0.26121759,704.61,703.48,1.063392]
[1735672929743,0.28382079,704.67,703.48,1.063392]
[1735672929940,0.26120081,704.66,703.48,1.063392]
[1735672930637,0.26119574,704.65,703.48,1.063392]
[1735672930845,0.26119574,704.64,703.54,1.063392]
[1735672931044,0.26119574,704.63,703.54,1.063392]
[1735672931237,0.28382079,704.67,703.54,1.063392]
[1735672931442,0.26120101,704.66,703.54,1.063392]
[1735672931939,0.26120101,704.66,703.5,1.063392]
[1735672932745,0.28382079,704.67,703.49,1.063392]
[1735672933146,0.26118417,704.66,703.49,1.063392]
[1735672933741,0.28382079,704.67,703.49,1.063392]
[1735672933944,0.26118993,704.66,703.49,1.063392]
[1735672934145,0.28382079,704.67,703.52,1.063392]
[1735672935249,0.26118768,704.66,703.52,1.063392]
[1735672936347,0.28382079,704.67,703.52,1.063392]
[1735672936649,0.26120562,704.66,703.5,0.28429282]
[1735672936844,0.28382079,704.67,703.5,0.28429282]
[1735672937042,0.26121552,704.66,703.5,0.28429282]
[1735672937443,0.28382079,704.67,703.5,0.28429282]
[1735672940854,0.26120224,704.66,703.5,0.28429282]
[1735672942049,0.28382079,704.67,703.5,0.28429282]
[1735672942851,0.2612115,704.66,703.5,0.28429282]
[1735672944152,0.28382079,704.67,703.5,0.28429282]
[1735672944353,0.2612019,704.66,703.5,0.28429282]
[1735672948153,0.26119584,704.65,703.5,0.28429282]
[1735672948355,0.26119584,704.64,703.5,1.34768482]
[1735672948555,0.26119584,704.63,703.5,1.34768482]
[1735672948759,0.28382079,704.67,703.5,1.34768482]
[1735672949059,0.26118949,704.66,703.5,1.34768482]
[1735672949454,0.26118949,704.66,703.56,1.063392]
[1735672950460,1.48279658,704.73,703.57,0.28426453]
[1735672950654,1.06064198,704.85,703.57,0.28426453]
[1735672950956,2.54318588,704.85,703.57,0.28426453]
[1735672951459,1.4825439,704.85,703.57,0.28426453]
[1735672956867,0.26116128,704.84,703.57,0.28426453]
[1735672957067,1.4825439,704.85,703.57,0.28426453]
[1735672960473,0.26115235,704.84,703.57,0.28426453]
[1735672961267,0.26114122,704.83,703.57,0.28426453]
[1735672961572,1.4825439,704.85,703.57,0.28426453]
[1735672961573,0.26114122,704.82,703.63,1.063392]
[1735672961768,0.26114122,704.81,703.63,1.063392]
[1735672961970,0.26114122,704.8,703.64,0.28423625]
[1735672962171,0.26114122,704.79,703.64,0.28423625]
[1735672962368,0.26114122,704.78,703.64,0.28423625]
[1735672962568,0.26114122,704.77,703.64,0.28423625]
[1735672962876,1.4825439,704.85,703.64,0.28423625]
[1735672963075,0.26114051,704.84,703.64,0.28423625]
[1735672964176,0.26115017,704.83,703.64,0.28423625]
[1735672964376,0.26115017,704.82,703.64,0.28423625]
[1735672964578,0.26115017,704.81,703.64,0.28423625]
[1735672964779,0.26116104,704.8,703.64,0.28423625]
[1735672964972,0.26116104,704.79,703.64,0.28423625]
[1735672965176,0.26116104,704.78,703.64,0.28423625]
[1735672965381,0.26116104,704.77,703.64,0.28423625]
[1735672965571,0.26116104,704.76,703.64,0.28423625]
[1735672965878,0.26116104,704.75,703.64,0.28423625]
[1735672966177,1.4825439,704.85,703.64,0.28423625]
[1735672966380,0.2611484,704.84,703.64,0.28423625]
[1735672966878,0.2611476,704.83,703.64,0.28423625]
[1735672967077,0.2611476,704.82,703.64,0.28423625]
[1735672967279,0.2611476,704.81,703.64,0.28423625]
[1735672967480,0.2611476,704.8,703.64,0.28423625]
[1735672967680,0.2611476,704.79,703.64,0.28423625]
[1735672967982,1.4825439,704.85,703.64,0.28423625]
[1735672967983,0.2611476,704.78,703.64,0.28423625]
[1735672968179,0.2611476,704.77,703.64,0.28423625]
[1735672968383,0.2611476,704.76,703.64,0.28423625]
[1735672968676,0.2611476,704.75,703.64,0.28423625]
[1735672968979,0.2611476,704.74,703.64,0.28423625]
[1735672969180,1.4825439,704.85,703.64,0.28423625]
[1735672969379,0.261149,704.84,703.64,0.28423625]
[1735672970381,0.261149,704.84,703.64,1.34762825]
[1735672971385,0.261149,704.84,703.64,0.28423625]
[1735672972084,0.26114358,704.83,703.64,0.28423625]
[1735672972283,0.26114358,704.82,703.64,0.28423625]
[1735672972584,1.06064198,705.01,703.64,0.28423625]
[1735672972783,1.48234918,704.96,703.64,0.28423625]
[1735672972984,0.2611075,705.0,703.64,0.28423625]
[1735672973181,0.26109699,704.99,703.64,0.28423625]
[1735672973789,0.26109699,704.99,703.68,1.063392]
[1735672974791,0.26109699,704.99,703.69,0.28421606]
[1735672978689,0.26109699,704.98,703.69,0.28421606]
[1735672978886,0.26109699,704.97,703.69,0.28421606]
[1735672979085,0.26109699,704.96,703.69,0.28421606]
[1735672979286,0.26109699,704.95,703.69,0.28421606]
[1735672979484,0.26109699,704.94,703.69,0.28421606]
[1735672979687,1.48223869,705.04,703.69,0.28421606]
[1735672979888,0.26110449,705.03,703.69,0.28421606]
[1735672983790,0.26110449,705.03,703.71,1.063392]
[1735672983987,0.26110449,705.03,703.72,0.28420394]
[1735672984291,1.48223869,705.04,703.72,0.28420394]
[1735672986290,0.26110297,705.03,703.72,0.28420394]
[1735672986490,0.26110556,705.02,703.72,0.28420394]
[1735672986692,1.48223869,705.04,703.72,0.28420394]
[1735672991491,0.26112755,705.03,703.72,0.28420394]
[1735672995094,0.26112093,705.02,703.72,0.28420394]
[1735672995295,0.26112093,705.01,703.72,0.28420394]
[1735672995599,1.48223869,705.04,703.72,0.28420394]
[1735672995600,0.26112093,705.0,703.72,0.28420394]
[1735672995800,0.26112093,704.99,703.72,0.28420394]
[1735672996002,0.26112406,705.03,703.72,0.28420394]
[1735672996200,0.26112406,705.02,703.72,0.28420394]
[1735672996401,0.26112406,705.01,703.72,0.28420394]
[1735672996602,0.26112406,705.0,703.72,0.28420394]
[1735672996796,1.48223869,705.04,703.72,0.28420394]
[1735672996999,0.2611148,705.03,703.72,0.28420394]
[1735672997303,1.32385641,705.03,703.72,0.28420394]
[1735672997501,0.2611148,705.02,703.72,0.28420394]
[1735672998205,1.32385641,705.02,703.72,0.28420394]
[1735672998398,0.2611148,705.01,703.72,0.28420394]
[1735672999402,1.06274161,704.96,703.72,0.28420394]
[1735672999601,0.2611148,704.95,703.72,0.28420394]
[1735672999997,1.482265,704.94,703.72,0.28420394]
[1735673000297,0.2611148,704.93,703.72,0.28420394]
[1735673000501,1.482265,704.94,703.72,0.28420394]
[1735673000502,0.2611026,704.92,703.72,0.28420394]
[1735673000702,0.2611026,704.91,703.72,0.28420394]
[1735673000903,1.482265,704.94,703.72,0.28420394]
[1735673001097,0.26110254,704.93,703.72,0.28420394]
[1735673001601,1.482265,704.94,703.72,0.28420394]
[1735673002607,0.26109301,704.93,703.72,0.28420394]
[1735673003007,0.26109301,704.93,703.8,1.063392]
[1735673003205,0.26110445,704.92,703.8,1.063392]
[1735673003405,0.26110445,704.91,703.8,1.063392]
[1735673003601,0.26110445,704.9,703.8,1.063392]
[1735673003805,1.482265,704.94,703.8,1.063392]
[1735673004107,0.26109373,704.93,703.8,1.063392]
[1735673004402,1.06274161,704.92,703.78,1.063392]
[1735673004607,0.26109373,704.91,703.78,1.063392]
[1735673005503,0.26109373,704.91,703.81,1.063392]
[1735673005701,1.06274161,704.94,703.81,1.063392]
[1735673006505,1.06274161,704.96,703.78,1.063392]
[1735673006707,0.26109135,704.95,703.78,1.063392]
[1735673007107,1.06274161,704.96,703.78,1.063392]
[1735673007309,0.26109118,704.95,703.78,1.063392]
[1735673007711,1.06274161,704.94,703.8,1.063392]
[1735673008009,0.26109897,704.93,703.8,1.063392]
[1735673008209,1.06274161,704.94,703.8,1.063392]
[1735673008912,1.06274161,704.92,703.79,1.063392]
[1735673009711,0.2610972,704.91,703.79,1.063392]
[1735673010111,0.2610972,704.91,703.81,1.063392]
[1735673010308,1.06274161,704.93,703.81,1.063392]
[1735673010509,0.2611074,704.92,703.81,1.063392]
[1735673011309,1.06274161,704.89,703.77,1.063392]
[1735673011505,0.26113032,704.88,703.77,1.063392]
[1735673012212,1.06274161,704.85,703.72,0.28420394]
[1735673013410,1.4821703,704.97,703.72,0.28420394]
[1735673013411,1.06274161,704.88,703.72,0.28420394]
[1735673014506,1.06274161,704.9,703.72,0.28420394]
[1735673015612,1.06274161,704.93,703.72,0.28420394]
[1735673016413,1.06274161,704.98,703.72,0.28420394]
[1735673016913,0.26110614,704.97,703.72,0.28420394]
[1735673017515,1.06274161,704.96,703.72,0.28420394]
[1735673018615,0.26111732,704.95,703.72,0.28420394]
[1735673018816,1.06274161,704.96,703.72,0.28420394]
[1735673019016,1.06274161,704.94,703.72,0.28420394]
[1735673021413,1.06274161,704.93,703.72,0.28420394]
[1735673022318,0.26111471,704.92,703.72,0.28420394]
[1735673022820,0.26111471,704.91,703.72,0.28420394]
[1735673023015,0.26111471,704.9,703.72,0.28420394]
[1735673023215,0.26111471,704.89,703.72,0.28420394]
[1735673023412,0.26111471,704.88,703.72,0.28420394]
[1735673023620,0.26112725,704.87,703.72,0.28420394]
[1735673023820,0.26112725,704.86,703.72,0.28420394]
[1735673024021,1.06274161,704.84,703.74,1.063392]
[1735673024819,0.26112467,704.83,703.74,1.063392]
[1735673025612,1.06274161,704.84,703.74,1.063392]
[1735673026219,1.06274161,704.84,703.72,0.28420394]
[1735673026421,1.06064198,705.0,703.72,0.28420394]
[1735673026422,1.06274161,704.8,703.72,0.28420394]
[1735673027221,1.48238075,704.85,703.72,0.28420394]
[1735673036023,0.26114116,704.84,703.72,0.28420394]
[1735673037130,0.26114089,704.83,703.72,0.28420394]
[1735673037333,1.48238075,704.85,703.72,0.28420394]
[1735673037334,0.26114089,704.82,703.72,0.28420394]
[1735673037531,1.48238075,704.85,703.72,0.28420394]
[1735673037929,1.06274161,704.83,703.72,0.28420394]
[1735673038832,1.48238075,704.85,703.72,0.28420394]
[1735673038833,1.06274161,704.84,703.72,0.28420394]
[1735673039031,0.26113123,704.83,703.72,0.28420394]
[1735673039635,2.54512236,704.85,703.72,0.28420394]
[1735673039835,0.26112996,704.84,703.72,0.28420394]
[1735673040737,1.06274161,704.82,703.72,0.28420394]
[1735673041734,1.06274161,704.84,703.72,0.28420394]
[1735673043633,1.48238075,704.85,703.72,0.28420394]
[1735673049533,1.06274161,704.83,703.72,0.28420394]
[1735673051141,1.06274161,704.84,703.72,0.28420394]
[1735673052041,1.48238075,704.85,703.72,0.28420394]
[1735673055446,2.54512236,704.85,703.72,0.28420394]
[1735673055742,0.26115359,704.84,703.72,0.28420394]
[1735673056646,1.06274161,704.75,703.72,0.28420394]
[1735673057644,1.48238075,704.85,703.72,0.28420394]
[1735673057645,1.06274161,704.76,703.72,0.28420394]
[1735673058143,1.74380671,704.75,703.72,0.28420394]
[1735673058344,0.26118912,704.74,703.72,0.28420394]
[1735673058748,1.06274161,704.68,703.72,0.28420394]
[1735673058947,0.26118912,704.67,703.72,0.28420394]
[1735673059848,1.06274161,704.64,703.72,0.28420394]
[1735673060147,0.26119881,704.63,703.72,0.28420394]
[1735673060548,1.06274161,704.64,703.72,0.28420394]
[1735673060950,1.06274161,704.63,703.72,0.28420394]
[1735673062044,1.48261759,704.75,703.72,0.28420394]
[1735673062045,1.06274161,704.71,703.72,0.28420394]
[1735673062353,0.26122064,704.7,703.72,0.28420394]
[1735673063346,0.26122064,704.69,703.72,0.28420394]
[1735673063547,0.26122064,704.68,703.72,0.28420394]
[1735673063743,1.06274161,704.74,703.72,0.28420394]
[1735673063950,0.26121497,704.73,703.72,0.28420394]
[1735673064649,1.06274161,704.74,703.72,0.28420394]
[1735673065450,1.48261759,704.75,703.72,0.28420394]
[1735673066043,0.26118852,704.74,703.72,0.28420394]
[1735673066247,1.48261759,704.75,703.72,0.28420394]
[1735673071553,0.2612017,704.74,703.72,0.28420394]
[1735673072154,1.48261759,704.75,703.72,0.28420394]
[1735673073355,0.26121798,704.74,703.72,0.28420394]
[1735673073952,1.48261759,704.75,703.72,0.28420394]
[1735673074158,0.2612252,704.74,703.72,0.28420394]
[1735673075357,1.06274161,704.72,703.72,0.28420394]
[1735673075555,0.2612252,704.71,703.72,0.28420394]
[1735673076055,0.2612254,704.7,703.72,0.28420394]
[1735673076254,0.2612254,704.69,703.72,0.28420394]
[1735673076559,0.2612254,704.68,703.72,0.28420394]
[1735673076756,0.2612254,704.67,703.72,0.28420394]
[1735673076958,0.2612254,704.66,703.72,0.28420394]
[1735673077153,0.2612254,704.65,703.72,0.28420394]
[1735673078552,0.26122238,704.64,703.72,0.28420394]
[1735673078758,0.26122238,704.63,703.72,0.28420394]
[1735673078957,1.48289135,704.66,703.72,0.28420394]
[1735673079258,0.26122174,704.65,703.72,0.28420394]
[1735673079664,1.48289135,704.66,703.72,0.28420394]
[1735673080158,0.26122513,704.65,703.72,0.28420394]
[1735673081659,1.48289135,704.66,703.72,0.28420394]
[1735673081660,0.26122305,704.64,703.72,0.28420394]
[1735673081858,1.48289135,704.66,703.72,0.28420394]
[1735673082160,0.26121737,704.65,703.72,0.28420394]
[1735673083958,1.32395898,704.65,703.72,0.28420394]
[1735673084160,0.26121737,704.64,703.72,0.28420394]
[1735673085269,0.26121737,704.63,703.72,0.28420394]
[1735673085459,0.26121737,704.62,703.72,0.28420394]
[1735673085663,0.26121737,704.61,703.72,0.28420394]
[1735673085867,0.26121737,704.6,703.72,0.28420394]
[1735673086068,0.26121737,704.59,703.72,0.28420394]
[1735673086267,1.48289135,704.66,703.72,0.28420394]
[1735673086464,0.26120938,704.65,703.72,0.28420394]
[1735673086666,0.26120958,704.64,703.72,0.28420394]
[1735673086864,0.26120958,704.63,703.72,0.28420394]
[1735673087060,1.48289135,704.66,703.72,0.28420394]
[1735673087061,0.26120958,704.62,703.72,0.28420394]
[1735673087272,0.26120958,704.65,703.72,0.28420394]
[1735673087664,0.26120958,704.64,703.72,0.28420394]
[1735673087967,0.26120958,704.63,703.72,0.28420394]
[1735673088166,0.26120958,704.62,703.72,0.28420394]
[1735673088364,1.48289135,704.66,703.72,0.28420394]
[1735673098877,1.06274161,704.75,703.72,0.28420394]
[1735673099471,1.06274161,704.77,703.72,0.28420394]
[1735673100375,1.06274161,704.83,703.72,0.28420394]
[1735673100574,0.26114126,704.82,703.72,0.28420394]
[1735673101877,1.06274161,704.85,703.72,0.28420394]
[1735673102979,1.06274161,704.96,703.72,0.28420394]
[1735673103181,0.26110698,704.95,703.72,0.28420394]
[1735673104174,0.26110698,704.94,703.72,0.28420394]
[1735673104381,0.26110658,704.93,703.72,0.28420394]
[1735673104574,0.26110658,704.92,703.72,0.28420394]
[1735673104881,1.4822913,704.97,703.72,0.28420394]
[1735673105080,1.06274161,705.05,703.72,0.28420394]
[1735673105279,2.54494347,705.05,703.72,0.28420394]
[1735673106179,1.48220186,705.05,703.72,0.28420394]
[1735673110679,1.06274161,705.37,703.72,0.28420394]
[1735673110882,1.48212296,705.17,703.72,0.28420394]
[1735673111181,0.26104086,705.16,703.72,0.28420394]
[1735673111382,0.26104086,705.15,703.72,0.28420394]
[1735673112284,0.26103415,705.14,703.72,0.28420394]
[1735673112479,0.26103415,705.13,703.72,0.28420394]
[1735673112676,0.26103415,705.12,703.72,0.28420394]
[1735673112987,1.4820651,705.16,703.72,0.28420394]
[1735673123080,0.26104592,705.15,703.72,0.28420394]
[1735673125487,0.26104157,705.14,703.72,0.28420394]
[1735673125688,0.26104157,705.13,703.72,0.28420394]
[1735673125888,0.26104157,705.12,703.72,0.28420394]
[1735673126188,1.4820651,705.16,703.72,0.28420394]
[1735673126388,0.26103408,705.15,703.72,0.28420394]
[1735673128089,1.4820651,705.16,703.72,0.28420394]
[1735673128286,0.26104881,705.15,703.72,0.28420394]
[1735673128886,1.4820651,705.16,703.72,0.28420394]
[1735673129091,0.2610389,705.15,703.72,0.28420394]
[1735673129791,0.2610389,705.15,703.72,1.34759594]
[1735673130888,1.4820651,705.16,703.74,1.063392]
[1735673131090,0.26104938,705.15,703.75,0.28419182]
[1735673132688,0.26104938,705.15,703.77,1.063392]
[1735673132991,0.26104938,705.15,703.78,0.28417971]
[1735673133392,1.32379099,705.15,703.78,1.34757171]
[1735673133592,0.26104482,705.14,703.78,1.34757171]
[1735673134393,1.06274161,705.1,703.82,1.063392]
[1735673134590,0.26104482,705.09,703.82,1.063392]
[1735673134988,0.26104482,705.09,703.83,0.28415952]
[1735673135192,1.48194939,705.08,703.83,0.28415952]
[1735673135395,1.06274161,705.05,703.83,0.28415952]
[1735673135588,0.26104482,705.04,703.83,0.28415952]
[1735673136094,1.06274161,705.05,703.83,0.28415952]
[1735673136295,0.261067,705.04,703.83,0.28415952]
[1735673136997,0.26106775,705.03,703.83,0.28415952]
[1735673137191,0.26106775,705.02,703.83,0.28415952]
[1735673137395,0.26106775,705.01,703.85,1.063392]
[1735673138397,0.26106775,705.01,703.83,0.28415952]
[1735673138398,1.32380936,705.01,703.87,1.063392]
[1735673138599,0.26106775,705.0,703.87,1.063392]
[1735673138994,0.26106368,704.99,703.87,1.063392]
[1735673139193,0.26106368,704.98,703.89,1.063392]
[1735673139397,0.26106536,704.97,703.89,1.063392]
[1735673139598,1.06274161,705.0,703.89,1.063392]
[1735673139795,0.26106985,704.99,703.89,1.063392]
[1735673140197,1.06274161,704.98,703.9,1.063392]
[1735673140400,0.26106985,704.97,703.9,1.063392]
[1735673140597,1.06274161,704.98,703.9,1.063392]
[1735673140802,0.26106699,704.97,703.9,1.063392]
[1735673141003,1.06274161,704.98,703.91,1.063392]
[1735673141904,1.06274161,704.99,703.93,1.063392]
[1735673143105,1.06274161,705.01,703.96,1.063392]
[1735673144005,1.06274161,705.04,703.94,1.063392]
[1735673144801,1.48194939,705.08,703.94,1.063392]
[1735673144802,1.06274161,705.05,703.94,1.063392]
[1735673145909,1.06274161,705.03,703.93,1.063392]
[1735673147006,1.06274161,705.04,703.95,1.063392]
[1735673148012,1.06064198,705.24,704.01,1.063392]
[1735673148013,1.06274161,705.1,704.01,1.063392]
[1735673149211,1.06274161,705.14,704.08,1.063392]
[1735673150206,1.06274161,705.16,704.08,1.063392]
[1735673150412,0.26100283,705.15,704.08,1.063392]
[1735673151207,1.06274161,705.14,704.04,1.063392]
[1735673152508,1.06274161,705.18,704.06,1.063392]
[1735673152711,0.2610067,705.17,704.06,1.063392]
[1735673152906,0.26101532,705.16,704.06,1.063392]
[1735673153113,0.26101532,705.15,704.06,1.063392]
[1735673153314,0.26101532,705.14,704.02,1.063392]
[1735673153613,0.26102086,705.13,704.02,1.063392]
[1735673153812,0.26102086,705.12,704.02,1.063392]
[1735673154111,1.06274161,705.15,704.02,1.063392]
[1735673154314,0.26101139,705.14,704.02,1.063392]
[1735673154506,0.26101139,705.13,704.02,1.063392]
[1735673154811,1.06274161,705.16,704.02,1.063392]
[1735673155012,0.26101047,705.15,704.02,1.063392]
[1735673155213,0.26101047,705.15,704.01,1.063392]
[1735673155417,1.06274161,705.18,704.01,1.063392]
[1735673155606,0.26099904,705.17,704.01,1.063392]
[1735673156215,0.26099904,705.17,704.04,1.063392]
[1735673156412,0.26099904,705.16,704.04,1.063392]
[1735673156610,1.06274161,705.2,704.05,0.28407073]
[1735673156813,0.26099516,705.19,704.05,0.28407073]
[1735673157613,0.26099516,705.18,704.05,1.34746273]
[1735673157813,0.26099516,705.17,704.05,1.34746273]
[1735673158008,0.26099516,705.16,704.05,1.34746273]
[1735673158208,1.06274161,705.23,704.05,1.34746273]
[1735673158408,0.26099706,705.22,704.05,0.28407073]
[1735673159713,1.48179163,705.24,704.05,0.28407073]
[1735673159714,0.26099706,705.21,704.05,0.28407073]
[1735673159913,0.26099706,705.2,704.05,0.28407073]
[1735673160110,1.48179163,705.24,704.05,0.28407073]
[1735673160314,0.26101232,705.23,704.05,0.28407073]
[1735673160509,1.06274161,705.2,704.05,0.28407073]
[1735673160712,0.26101232,705.19,704.05,0.28407073]
[1735673161710,0.26101232,705.18,704.05,0.28407073]
[1735673161911,0.26101232,705.17,704.05,0.28407073]
[1735673162111,0.26101974,705.16,704.05,0.28407073]
[1735673162313,0.26101974,705.15,704.05,0.28407073]
[1735673162508,0.26101974,705.14,704.05,0.28407073]
[1735673162816,1.06274161,705.21,704.05,0.28407073]
[1735673163013,0.26102257,705.2,704.05,0.28407073]
[1735673163618,1.32376418,705.2,704.05,0.28407073]
[1735673163815,0.26102257,705.19,704.05,0.28407073]
[1735673164809,0.26102257,705.18,704.05,0.28407073]
[1735673165012,0.26100199,705.17,704.05,0.28407073]
[1735673165208,1.48179163,705.24,704.05,0.28407073]
[1735673165413,0.26100333,705.23,704.05,0.28407073]
[1735673167116,0.26100044,705.22,704.05,0.28407073]
[1735673167315,0.26100044,705.21,704.05,0.28407073]
[1735673167519,0.26100044,705.2,704.05,0.28407073]
[1735673167817,0.26100044,705.19,704.05,0.28407073]
[1735673168018,0.26100265,705.18,704.05,0.28407073]
[1735673168219,0.26100265,705.17,704.05,0.28407073]
[1735673168518,1.48179163,705.24,704.05,0.28407073]
[1735673168718,0.26100448,705.23,704.05,0.28407073]
[1735673170928,1.48179163,705.24,704.05,0.28407073]
[1735673171727,1.48179163,705.24,704.05,1.34746273]
[1735673173229,1.48179163,705.24,704.07,1.063392]
[1735673173625,1.48179163,705.24,704.08,0.28405862]
[1735673174831,1.06274161,705.33,704.08,0.28405862]
[1735673175129,0.26095141,705.32,704.08,0.28405862]
[1735673175631,0.26095141,705.32,704.11,1.063392]
[1735673175825,0.26094945,705.31,704.11,1.063392]
[1735673176028,1.48146571,705.34,704.11,1.063392]
[1735673176633,1.48146571,705.34,704.12,1.34743449]
[1735673176832,1.48146571,705.34,704.13,0.28403845]
[1735673178434,1.48146571,705.34,704.15,1.063392]
[1735673178735,0.26095254,705.33,704.16,0.28402635]
[1735673179733,1.48146571,705.34,704.16,0.28402635]
[1735673189543,0.2610048,705.33,704.16,0.28402635]
[1735673190738,1.06274161,705.3,704.16,0.28402635]
[1735673190942,0.26100886,705.29,704.16,0.28402635]
[1735673191744,1.32375047,705.29,704.16,0.28402635]
[1735673191943,0.26100886,705.28,704.16,0.28402635]
[1735673192846,1.06274161,705.29,704.16,0.28402635]
[1735673193046,0.26102217,705.28,704.16,0.28402635]
[1735673193549,1.06274161,705.29,704.16,0.28402635]
[1735673193747,0.26100578,705.28,704.16,0.28402635]
[1735673194552,1.32374739,705.28,704.16,0.28402635]
[1735673194744,0.26100578,705.27,704.16,0.28402635]
[1735673195450,1.48172854,705.26,704.16,0.28402635]
[1735673195650,0.26100578,705.25,704.16,0.28402635]
[1735673196351,0.26101661,705.24,704.16,0.28402635]
[1735673196551,0.26101661,705.23,704.16,0.28402635]
[1735673196852,0.26101661,705.22,704.16,0.28402635]
[1735673197145,0.26101661,705.21,704.16,0.28402635]
[1735673197346,0.26101661,705.2,704.16,0.28402635]
[1735673197547,0.26101661,705.19,704.16,0.28402635]
[1735673197850,0.26101661,705.18,704.16,0.28402635]
[1735673198047,0.26101661,705.17,704.16,0.28402635]
[1735673198248,1.06274161,705.23,704.16,0.28402635]
[1735673198546,1.32378435,705.22,704.16,0.28402635]
[1735673198746,0.26104274,705.21,704.16,0.28402635]
[1735673199553,1.32378435,705.21,704.16,0.28402635]
[1735673199853,0.26104274,705.2,704.16,0.28402635]
[1735673200654,0.26104274,705.19,704.16,0.28402635]
[1735673200854,0.26104274,705.18,704.16,0.28402635]
[1735673201054,1.06274161,705.22,704.16,0.28402635]
[1735673201354,0.26103689,705.21,704.16,0.28402635]
[1735673201548,0.26103975,705.2,704.16,0.28402635]
[1735673201849,1.48172854,705.26,704.16,0.28402635]
[1735673201850,0.26103975,705.19,704.16,0.28402635]
[1735673202047,0.26103887,705.18,704.16,0.28402635]
[1735673202246,0.26103887,705.17,704.16,0.28402635]
[1735673202450,2.54447015,705.26,704.16,0.28402635]
[1735673202648,0.26104007,705.25,704.16,0.28402635]
[1735673204255,0.26103915,705.24,704.16,0.28402635]
[1735673204459,0.26103915,705.23,704.16,0.28402635]
[1735673204656,0.26103915,705.22,704.16,0.28402635]
[1735673204858,0.26103915,705.21,704.16,0.28402635]
[1735673205057,0.26103915,705.2,704.16,0.28402635]
[1735673205256,0.26103915,705.19,704.16,0.28402635]
[1735673205455,0.26103915,705.18,704.16,0.28402635]
[1735673205657,0.26103915,705.17,704.16,0.28402635]
[1735673205856,0.26103915,705.16,704.16,0.28402635]
[1735673207659,0.26103422,705.15,704.16,0.28402635]
[1735673207860,1.48187051,705.17,704.16,0.28402635]